[Event "*** Titled Tuesday Blitz"]
[Site "Chess.com"]
[Date "2021.04.27"]
[Round "5"]
[White "Poghosyan_Suren"]
[Black "Make_it_shine060"]
[Result "1-0"]
[WhiteElo "2363"]
[BlackElo "2171"]
[TimeControl "180+1"]
[EndTime "10:53:44 PDT"]
[Termination "Poghosyan_Suren won by resignation"]

1. e4 {[%clk 0:02:57.9]} 1... c5 {[%clk 0:00:49.6]} 2. Nf3 {[%clk 0:02:55.8]}
2... d6 {[%clk 0:00:49.8]} 3. c3 {[%clk 0:02:54.3]} 3... Nf6 {[%clk 0:00:49.2]}
4. Bb5+ {[%clk 0:02:54.3]} 4... Bd7 {[%clk 0:00:46.8]} 5. Bd3 {[%clk 0:02:54.2]}
5... Nc6 {[%clk 0:00:46]} 6. O-O {[%clk 0:02:53.7]} 6... g6 {[%clk 0:00:45.8]}
7. Re1 {[%clk 0:02:52.3]} 7... Bg7 {[%clk 0:00:45.6]} 8. Bc2 {[%clk 0:02:52.8]}
8... O-O {[%clk 0:00:44.6]} 9. d4 {[%clk 0:02:52.9]} 9... cxd4 {[%clk
0:00:44.3]} 10. cxd4 {[%clk 0:02:53.8]} 10... Bg4 {[%clk 0:00:43.2]} 11. Be3
{[%clk 0:02:49.9]} 11... Qa5 {[%clk 0:00:40.9]} 12. Nc3 {[%clk 0:02:48.3]} 12...
Rac8 {[%clk 0:00:39.2]} 13. h3 {[%clk 0:02:46.8]} 13... Bxf3 {[%clk 0:00:35.8]}
14. Qxf3 {[%clk 0:02:47.6]} 14... Nb4 {[%clk 0:00:35.5]} 15. Bb3 {[%clk
0:02:43.4]} 15... Nd3 {[%clk 0:00:33.7]} 16. Re2 {[%clk 0:02:37.9]} 16... Nxb2
{[%clk 0:00:33.1]} 17. Bd2 {[%clk 0:02:29.3]} 17... Nc4 {[%clk 0:00:29]} 18. Be1
{[%clk 0:02:20.9]} 18... Qb6 {[%clk 0:00:26.3]} 19. Rb1 {[%clk 0:02:15.5]} 19...
Qxd4 {[%clk 0:00:25.6]} 20. Nd5 {[%clk 0:02:12.6]} 20... Nxd5 {[%clk 0:00:25]}
21. exd5 {[%clk 0:02:10.9]} 21... Ne5 {[%clk 0:00:24.7]} 22. Qg3 {[%clk
0:02:08.6]} 22... Rc3 {[%clk 0:00:24.1]} 23. Bxc3 {[%clk 0:02:07.5]} 23... Qc5
{[%clk 0:00:20.9]} 24. Rbe1 {[%clk 0:02:06.1]} 1-0

[Event "*** Titled Tuesday Blitz"]
[Site "Chess.com"]
[Date "2021.04.27"]
[Round "5"]
[White "lacafi"]
[Black "Matensien"]
[Result "0-1"]
[WhiteElo "2166"]
[BlackElo "2345"]
[TimeControl "180+1"]
[EndTime "10:53:47 PDT"]
[Termination "Matensien won by resignation"]

1. d4 {[%clk 0:03:00.9]} 1... Nf6 {[%clk 0:02:59.8]} 2. Nf3 {[%clk 0:03:01.3]}
2... g6 {[%clk 0:02:59.4]} 3. c4 {[%clk 0:03:01.3]} 3... Bg7 {[%clk 0:02:59.8]}
4. Nc3 {[%clk 0:03:01.9]} 4... O-O {[%clk 0:03:00.3]} 5. e4 {[%clk 0:03:02.4]}
5... d6 {[%clk 0:03:01]} 6. Be2 {[%clk 0:03:02.9]} 6... e5 {[%clk 0:03:01.3]} 7.
dxe5 {[%clk 0:03:03.1]} 7... dxe5 {[%clk 0:03:00.8]} 8. O-O {[%clk 0:03:04]}
8... c6 {[%clk 0:03:00.3]} 9. Qc2 {[%clk 0:03:04]} 9... Qc7 {[%clk 0:03:00.3]}
10. b4 {[%clk 0:03:04.1]} 10... a5 {[%clk 0:02:59]} 11. b5 {[%clk 0:03:04]}
11... Bg4 {[%clk 0:02:56.4]} 12. Rd1 {[%clk 0:03:02.5]} 12... Nbd7 {[%clk
0:02:53.9]} 13. Ba3 {[%clk 0:03:01.7]} 13... Rfe8 {[%clk 0:02:49.2]} 14. Bd6
{[%clk 0:02:58.6]} 14... Qc8 {[%clk 0:02:49.4]} 15. bxc6 {[%clk 0:02:51.8]}
15... bxc6 {[%clk 0:02:48.3]} 16. Na4 {[%clk 0:02:48.6]} 16... Bf8 {[%clk
0:02:40.5]} 17. Rab1 {[%clk 0:02:45.2]} 17... Bxd6 {[%clk 0:02:29.8]} 18. Rxd6
{[%clk 0:02:44.2]} 18... Qc7 {[%clk 0:02:30.3]} 19. Rbd1 {[%clk 0:02:42.8]}
19... Bxf3 {[%clk 0:02:23.9]} 20. Bxf3 {[%clk 0:02:42.3]} 20... Kg7 {[%clk
0:02:17]} 21. h4 {[%clk 0:02:31.4]} 21... h5 {[%clk 0:02:16.1]} 22. Qd2 {[%clk
0:02:11.8]} 22... Nb6 {[%clk 0:02:11.8]} 23. Nxb6 {[%clk 0:01:47.8]} 23... Qxb6
{[%clk 0:02:12.7]} 24. Qg5 {[%clk 0:01:25.7]} 24... Nh7 {[%clk 0:02:12.2]} 25.
Qg3 {[%clk 0:01:26]} 25... Nf6 {[%clk 0:01:46.3]} 26. Be2 {[%clk 0:01:05.5]}
26... Nxe4 {[%clk 0:01:39.7]} 27. Rxg6+ {[%clk 0:00:52.3]} 27... fxg6 {[%clk
0:01:37.6]} 28. Rd7+ {[%clk 0:00:52.3]} 28... Kh6 {[%clk 0:01:33.8]} 29. Qe3+
{[%clk 0:00:51.5]} 29... Qxe3 {[%clk 0:01:33.2]} 0-1

[Event "*** Titled Tuesday Blitz"]
[Site "Chess.com"]
[Date "2021.04.27"]
[Round "5"]
[White "GM_LOADING"]
[Black "Vugar_Manafov"]
[Result "0-1"]
[WhiteElo "2556"]
[BlackElo "2743"]
[TimeControl "180+1"]
[EndTime "10:53:52 PDT"]
[Termination "Vugar_Manafov won by resignation"]

1. e4 {[%clk 0:02:51.6]} 1... Nf6 {[%clk 0:03:00.7]} 2. e5 {[%clk 0:02:50.5]}
2... Nd5 {[%clk 0:02:59.4]} 3. d4 {[%clk 0:02:50.3]} 3... d6 {[%clk 0:02:59.3]}
4. Nf3 {[%clk 0:02:50.7]} 4... Nb6 {[%clk 0:02:57.7]} 5. Be2 {[%clk 0:02:42.5]}
5... g6 {[%clk 0:02:56.7]} 6. O-O {[%clk 0:02:42]} 6... Bg7 {[%clk 0:02:56.3]}
7. exd6 {[%clk 0:02:42]} 7... cxd6 {[%clk 0:02:57]} 8. c3 {[%clk 0:02:40.9]}
8... O-O {[%clk 0:02:57.2]} 9. Bf4 {[%clk 0:02:38.9]} 9... Nc6 {[%clk
0:02:54.4]} 10. Re1 {[%clk 0:02:38]} 10... e5 {[%clk 0:02:48.9]} 11. dxe5 {[%clk
0:02:37.2]} 11... dxe5 {[%clk 0:02:49.8]} 12. Bg5 {[%clk 0:02:37]} 12... Qc7
{[%clk 0:02:39.5]} 13. Na3 {[%clk 0:02:34.5]} 13... a6 {[%clk 0:02:38.4]} 14.
Qc2 {[%clk 0:02:14.6]} 14... h6 {[%clk 0:02:35.3]} 15. Be3 {[%clk 0:02:10.4]}
15... Nd5 {[%clk 0:02:33]} 16. Bc5 {[%clk 0:02:09]} 16... Rd8 {[%clk 0:02:32.4]}
17. Nc4 {[%clk 0:02:01.2]} 17... b6 {[%clk 0:02:28.1]} 18. Ba3 {[%clk
0:02:00.5]} 18... b5 {[%clk 0:02:27]} 19. Ncd2 {[%clk 0:01:55.2]} 19... Bf5
{[%clk 0:02:22.8]} 20. Qc1 {[%clk 0:01:53.4]} 20... Nf4 {[%clk 0:02:16.3]} 21.
Bf1 {[%clk 0:01:52.1]} 21... g5 {[%clk 0:01:45.7]} 22. Bc5 {[%clk 0:01:09.5]}
22... Bd3 {[%clk 0:01:21.2]} 23. Be3 {[%clk 0:00:58]} 23... Bxf1 {[%clk
0:01:19.2]} 24. Rxf1 {[%clk 0:00:58.9]} 24... Ne2+ {[%clk 0:01:18.3]} 0-1

[Event "*** Titled Tuesday Blitz"]
[Site "Chess.com"]
[Date "2021.04.27"]
[Round "5"]
[White "Mazanchenko_Dmitry"]
[Black "friesnielsen2302"]
[Result "0-1"]
[WhiteElo "2268"]
[BlackElo "2525"]
[TimeControl "180+1"]
[EndTime "10:53:52 PDT"]
[Termination "friesnielsen2302 won on time"]

1. e4 {[%clk 0:03:00.9]} 1... c6 {[%clk 0:02:59.8]} 2. Nc3 {[%clk 0:03:00]} 2...
d5 {[%clk 0:02:59.5]} 3. Nf3 {[%clk 0:03:00.9]} 3... dxe4 {[%clk 0:02:59.7]} 4.
Nxe4 {[%clk 0:03:01.8]} 4... Nf6 {[%clk 0:02:59.8]} 5. Nxf6+ {[%clk 0:03:01.9]}
5... exf6 {[%clk 0:03:00.3]} 6. d4 {[%clk 0:03:00.6]} 6... Be6 {[%clk
0:03:00.1]} 7. g3 {[%clk 0:02:59.4]} 7... Na6 {[%clk 0:02:56.4]} 8. c3 {[%clk
0:02:55.3]} 8... Nc7 {[%clk 0:02:55.9]} 9. Bg2 {[%clk 0:02:55.3]} 9... Bc4
{[%clk 0:02:55.1]} 10. b3 {[%clk 0:02:53.8]} 10... Be6 {[%clk 0:02:47.4]} 11.
O-O {[%clk 0:02:52.8]} 11... Be7 {[%clk 0:02:47.6]} 12. Re1 {[%clk 0:02:49.8]}
12... O-O {[%clk 0:02:47.7]} 13. c4 {[%clk 0:02:50]} 13... Qd7 {[%clk
0:02:47.8]} 14. Bb2 {[%clk 0:02:48.6]} 14... Rad8 {[%clk 0:02:47.5]} 15. a3
{[%clk 0:02:44.5]} 15... a5 {[%clk 0:02:46.7]} 16. Qd2 {[%clk 0:02:40.5]} 16...
a4 {[%clk 0:02:46.6]} 17. d5 {[%clk 0:02:03.6]} 17... cxd5 {[%clk 0:02:46]} 18.
cxd5 {[%clk 0:02:03.1]} 18... Bxd5 {[%clk 0:02:40.5]} 19. bxa4 {[%clk
0:01:50.3]} 19... Ne6 {[%clk 0:02:40.2]} 20. Rad1 {[%clk 0:01:38.9]} 20... Qxa4
{[%clk 0:02:38.7]} 21. Qc3 {[%clk 0:01:05.1]} 21... Rc8 {[%clk 0:02:34.7]} 22.
Qd3 {[%clk 0:00:18.9]} 22... Rfd8 {[%clk 0:02:31.8]} 23. Qf5 {[%clk 0:00:16.5]}
23... Qb3 {[%clk 0:02:27.6]} 24. Ba1 {[%clk 0:00:13.4]} 24... Bxa3 {[%clk
0:02:24.1]} 25. Qh3 {[%clk 0:00:03.6]} 25... Bc5 {[%clk 0:02:15.1]} 0-1

[Event "*** Titled Tuesday Blitz"]
[Site "Chess.com"]
[Date "2021.04.27"]
[Round "5"]
[White "JiiHart"]
[Black "serhanberat_ozdemir"]
[Result "0-1"]
[WhiteElo "2044"]
[BlackElo "2572"]
[TimeControl "180+1"]
[EndTime "10:53:54 PDT"]
[Termination "serhanberat_ozdemir won by resignation"]

1. e4 {[%clk 0:03:00.9]} 1... c5 {[%clk 0:02:59.7]} 2. Nf3 {[%clk 0:03:00.7]}
2... e6 {[%clk 0:02:59.7]} 3. d4 {[%clk 0:03:01.2]} 3... cxd4 {[%clk 0:03:00.3]}
4. Nxd4 {[%clk 0:03:02.1]} 4... a6 {[%clk 0:03:01]} 5. Nc3 {[%clk 0:03:01.8]}
5... b5 {[%clk 0:03:01.5]} 6. Bd3 {[%clk 0:03:01.2]} 6... Qb6 {[%clk 0:03:01.6]}
7. Nb3 {[%clk 0:02:56.2]} 7... Qc7 {[%clk 0:03:01.4]} 8. Be3 {[%clk 0:02:54.6]}
8... Bb7 {[%clk 0:03:01.5]} 9. O-O {[%clk 0:02:53.8]} 9... Nf6 {[%clk
0:02:54.7]} 10. a3 {[%clk 0:02:48.1]} 10... d6 {[%clk 0:02:54]} 11. f4 {[%clk
0:02:46]} 11... Nbd7 {[%clk 0:02:54.6]} 12. Qe2 {[%clk 0:02:29.5]} 12... Be7
{[%clk 0:02:52.7]} 13. Kh1 {[%clk 0:02:16.3]} 13... O-O {[%clk 0:02:48.1]} 14.
Rad1 {[%clk 0:01:47.2]} 14... Nc5 {[%clk 0:02:33]} 15. Nxc5 {[%clk 0:01:41.7]}
15... dxc5 {[%clk 0:02:33.7]} 16. e5 {[%clk 0:01:42]} 16... Nd5 {[%clk
0:02:32.4]} 17. Nxd5 {[%clk 0:01:26.9]} 17... Bxd5 {[%clk 0:02:33.3]} 18. Qh5
{[%clk 0:01:01.7]} 18... g6 {[%clk 0:02:30.7]} 19. Qh6 {[%clk 0:01:00.2]} 19...
Qb7 {[%clk 0:02:20.7]} 20. Rf2 {[%clk 0:00:56.3]} 20... Rfd8 {[%clk 0:02:19.2]}
21. Be2 {[%clk 0:00:33.5]} 21... Bf8 {[%clk 0:02:15.6]} 22. Qh4 {[%clk 0:00:22]}
22... Be4 {[%clk 0:02:15.7]} 23. Bd3 {[%clk 0:00:16.1]} 23... c4 {[%clk
0:02:04.9]} 24. Bxe4 {[%clk 0:00:15.7]} 24... Rxd1+ {[%clk 0:02:05.7]} 0-1

[Event "*** Titled Tuesday Blitz"]
[Site "Chess.com"]
[Date "2021.04.27"]
[Round "5"]
[White "DanielTitichoca"]
[Black "WonderChampion"]
[Result "1-0"]
[WhiteElo "2398"]
[BlackElo "2109"]
[TimeControl "180+1"]
[EndTime "10:53:57 PDT"]
[Termination "DanielTitichoca won by resignation"]

1. e4 {[%clk 0:03:00.9]} 1... c5 {[%clk 0:02:57.8]} 2. Nf3 {[%clk 0:02:59.1]}
2... g6 {[%clk 0:02:56.4]} 3. Bc4 {[%clk 0:02:58.2]} 3... Bg7 {[%clk 0:02:55.3]}
4. O-O {[%clk 0:02:58.8]} 4... e6 {[%clk 0:02:54.7]} 5. c3 {[%clk 0:02:59.1]}
5... Ne7 {[%clk 0:02:55.2]} 6. d4 {[%clk 0:02:58.7]} 6... cxd4 {[%clk
0:02:56.1]} 7. cxd4 {[%clk 0:02:58.9]} 7... O-O {[%clk 0:02:56.8]} 8. Nc3 {[%clk
0:02:58.8]} 8... Nbc6 {[%clk 0:02:57.2]} 9. e5 {[%clk 0:02:55.9]} 9... d5 {[%clk
0:02:56.4]} 10. Bd3 {[%clk 0:02:53.9]} 10... Nf5 {[%clk 0:02:55.3]} 11. Ne2
{[%clk 0:02:37.8]} 11... Bd7 {[%clk 0:02:49.9]} 12. g3 {[%clk 0:02:33.2]} 12...
a6 {[%clk 0:02:43.3]} 13. Kg2 {[%clk 0:02:31.4]} 13... h5 {[%clk 0:02:41.3]} 14.
h4 {[%clk 0:02:29.8]} 14... b5 {[%clk 0:02:39.8]} 15. Bg5 {[%clk 0:02:29.9]}
15... Qc7 {[%clk 0:02:37.5]} 16. Rc1 {[%clk 0:02:28.9]} 16... Qb6 {[%clk
0:02:36.9]} 17. Bxf5 {[%clk 0:02:25]} 17... exf5 {[%clk 0:02:35.5]} 18. Nf4
{[%clk 0:02:25.9]} 18... Be6 {[%clk 0:02:30.3]} 19. Qd2 {[%clk 0:02:25.2]} 19...
a5 {[%clk 0:02:28.2]} 20. Bf6 {[%clk 0:02:24.9]} 20... Bh6 {[%clk 0:02:24.1]}
21. Bg5 {[%clk 0:02:16.7]} 21... Bg7 {[%clk 0:02:17.6]} 22. Nxh5 {[%clk
0:02:16.6]} 22... gxh5 {[%clk 0:02:16.9]} 23. Bf6 {[%clk 0:02:16.1]} 23... Rfc8
{[%clk 0:02:13.5]} 24. Qg5 {[%clk 0:02:14.7]} 24... Kf8 {[%clk 0:02:10.2]} 25.
Qxg7+ {[%clk 0:02:13.9]} 25... Ke8 {[%clk 0:02:09.3]} 26. Rfd1 {[%clk
0:01:38.5]} 26... Kd7 {[%clk 0:02:02.7]} 27. Ng5 {[%clk 0:01:37.9]} 27... Rg8
{[%clk 0:02:00.9]} 28. Qh7 {[%clk 0:01:37.9]} 28... Raf8 {[%clk 0:01:44.8]} 29.
Qxh5 {[%clk 0:01:32.6]} 29... Nxd4 {[%clk 0:01:31.7]} 30. Nxe6 {[%clk
0:01:21.4]} 30... Nxe6 {[%clk 0:01:30]} 31. Rxd5+ {[%clk 0:01:19.5]} 31... Ke8
{[%clk 0:01:16.9]} 32. Rc8+ {[%clk 0:01:18.4]} 32... Nd8 {[%clk 0:01:17.1]} 1-0

[Event "*** Titled Tuesday Blitz"]
[Site "Chess.com"]
[Date "2021.04.27"]
[Round "5"]
[White "Diego_FloresQ"]
[Black "beto-betun"]
[Result "1/2-1/2"]
[WhiteElo "2600"]
[BlackElo "2214"]
[TimeControl "180+1"]
[EndTime "10:53:57 PDT"]
[Termination "Game drawn by agreement"]

1. e4 {[%clk 0:02:24.5]} 1... c5 {[%clk 0:02:57.9]} 2. Nf3 {[%clk 0:02:23]} 2...
d6 {[%clk 0:02:57.7]} 3. d4 {[%clk 0:02:21.1]} 3... cxd4 {[%clk 0:02:58.3]} 4.
Nxd4 {[%clk 0:02:05.9]} 4... Nf6 {[%clk 0:02:58.2]} 5. Nc3 {[%clk 0:01:58]} 5...
a6 {[%clk 0:02:58.8]} 6. Bg5 {[%clk 0:01:50.8]} 6... e6 {[%clk 0:02:58.8]} 7.
Qe2 {[%clk 0:01:40]} 7... Be7 {[%clk 0:02:50.2]} 8. f4 {[%clk 0:01:16.7]} 8...
Qc7 {[%clk 0:02:34.6]} 9. O-O-O {[%clk 0:00:58.1]} 9... Nbd7 {[%clk 0:02:27.5]}
10. g3 {[%clk 0:00:56.5]} 10... b5 {[%clk 0:02:22.5]} 11. Bg2 {[%clk 0:00:55.7]}
11... b4 {[%clk 0:02:20.4]} 12. Nb1 {[%clk 0:00:30.2]} 12... Bb7 {[%clk
0:02:17.1]} 13. Rhe1 {[%clk 0:00:27.4]} 13... Rc8 {[%clk 0:02:12.8]} 14. e5
{[%clk 0:00:20.1]} 14... Bxg2 {[%clk 0:02:05.9]} 15. exf6 {[%clk 0:00:15.9]}
15... gxf6 {[%clk 0:02:01.7]} 16. Qxg2 {[%clk 0:00:10.8]} 16... fxg5 {[%clk
0:01:57.7]} 17. f5 {[%clk 0:00:10.9]} 17... e5 {[%clk 0:01:50.6]} 18. Nb3 {[%clk
0:00:11.1]} 18... a5 {[%clk 0:01:44.7]} 1/2-1/2

[Event "*** Titled Tuesday Blitz"]
[Site "Chess.com"]
[Date "2021.04.27"]
[Round "5"]
[White "fabianvivasz"]
[Black "Pelopidass"]
[Result "0-1"]
[WhiteElo "2371"]
[BlackElo "2552"]
[TimeControl "180+1"]
[EndTime "10:54:13 PDT"]
[Termination "Pelopidass won by resignation"]

1. c4 {[%clk 0:03:00.9]} 1... Nf6 {[%clk 0:02:59]} 2. Nc3 {[%clk 0:02:59.1]}
2... g6 {[%clk 0:02:59.4]} 3. g3 {[%clk 0:02:57.5]} 3... Bg7 {[%clk 0:02:58.8]}
4. Bg2 {[%clk 0:02:58]} 4... O-O {[%clk 0:02:59.4]} 5. e4 {[%clk 0:02:53.2]}
5... d6 {[%clk 0:02:59.8]} 6. d4 {[%clk 0:02:52.5]} 6... e5 {[%clk 0:02:47.7]}
7. Nf3 {[%clk 0:02:49.5]} 7... Bg4 {[%clk 0:02:42.2]} 8. dxe5 {[%clk 0:02:26.3]}
8... Bxf3 {[%clk 0:02:41.2]} 9. exf6 {[%clk 0:01:59.1]} 9... Bxd1 {[%clk
0:02:37.9]} 10. fxg7 {[%clk 0:01:57.8]} 10... Kxg7 {[%clk 0:02:30.7]} 11. Nxd1
{[%clk 0:01:55.9]} 11... Nc6 {[%clk 0:02:28.4]} 12. b3 {[%clk 0:01:53]} 12...
Nd4 {[%clk 0:02:17.4]} 13. Bb2 {[%clk 0:01:47.9]} 13... c5 {[%clk 0:02:17]} 14.
Ne3 {[%clk 0:01:44.5]} 14... Qa5+ {[%clk 0:02:15.9]} 15. Kf1 {[%clk 0:01:41.2]}
15... Qd2 {[%clk 0:02:12]} 16. Bxd4+ {[%clk 0:01:25]} 16... cxd4 {[%clk
0:01:51.8]} 17. Nd5 {[%clk 0:01:23]} 17... d3 {[%clk 0:01:22.2]} 18. Bf3 {[%clk
0:01:19.6]} 18... f5 {[%clk 0:01:22.6]} 19. Rd1 {[%clk 0:01:00.6]} 19... Qxa2
{[%clk 0:01:18.1]} 20. Nf4 {[%clk 0:00:45]} 20... fxe4 {[%clk 0:01:15.2]} 21.
Bxe4 {[%clk 0:00:44.3]} 21... Rxf4 {[%clk 0:01:13.9]} 22. gxf4 {[%clk
0:00:43.4]} 22... Qe2+ {[%clk 0:01:14.4]} 23. Kg2 {[%clk 0:00:38.6]} 23... Qg4+
{[%clk 0:01:13.8]} 0-1

[Event "*** Titled Tuesday Blitz"]
[Site "Chess.com"]
[Date "2021.04.27"]
[Round "5"]
[White "McCarthyStone"]
[Black "elcandado"]
[Result "0-1"]
[WhiteElo "2347"]
[BlackElo "2636"]
[TimeControl "180+1"]
[EndTime "10:54:15 PDT"]
[Termination "elcandado won by resignation"]

1. e4 {[%clk 0:03:00.9]} 1... e5 {[%clk 0:02:59.3]} 2. Nf3 {[%clk 0:03:00.8]}
2... Nc6 {[%clk 0:02:59.2]} 3. Nc3 {[%clk 0:03:01.7]} 3... Nf6 {[%clk
0:02:58.4]} 4. d4 {[%clk 0:03:02.4]} 4... exd4 {[%clk 0:02:58.2]} 5. Nd5 {[%clk
0:03:03]} 5... Nb4 {[%clk 0:02:56.2]} 6. Bc4 {[%clk 0:03:01.5]} 6... Nbxd5
{[%clk 0:02:52]} 7. exd5 {[%clk 0:03:00.7]} 7... Bb4+ {[%clk 0:02:50.7]} 8. Bd2
{[%clk 0:02:59.5]} 8... Qe7+ {[%clk 0:02:46]} 9. Qe2 {[%clk 0:02:59.7]} 9...
Bxd2+ {[%clk 0:02:41.7]} 10. Kxd2 {[%clk 0:03:00.6]} 10... Qxe2+ {[%clk
0:02:16.2]} 11. Kxe2 {[%clk 0:03:01.5]} 11... d6 {[%clk 0:02:12.8]} 12. Nxd4
{[%clk 0:02:59]} 12... a6 {[%clk 0:02:10.9]} 13. a4 {[%clk 0:02:58.3]} 13... O-O
{[%clk 0:02:05.5]} 14. f3 {[%clk 0:02:58.5]} 14... Re8+ {[%clk 0:02:03]} 15. Kf2
{[%clk 0:02:58.7]} 15... b6 {[%clk 0:01:56.4]} 16. Bb3 {[%clk 0:02:48.4]} 16...
Bb7 {[%clk 0:01:54.8]} 17. c4 {[%clk 0:02:48.6]} 17... a5 {[%clk 0:01:47.7]} 18.
Rhe1 {[%clk 0:02:47.7]} 18... Ba6 {[%clk 0:01:44]} 19. g3 {[%clk 0:02:39.2]}
19... Nd7 {[%clk 0:01:41.3]} 20. Nb5 {[%clk 0:01:39.8]} 20... Bxb5 {[%clk
0:01:39]} 21. axb5 {[%clk 0:01:37.2]} 21... Ne5 {[%clk 0:01:24.9]} 22. Re3
{[%clk 0:01:28.6]} 22... Kf8 {[%clk 0:01:21.2]} 23. Rae1 {[%clk 0:01:24.8]}
23... Re7 {[%clk 0:01:21.5]} 24. h3 {[%clk 0:01:15.1]} 24... Rae8 {[%clk
0:01:21.7]} 25. Kf1 {[%clk 0:00:59.3]} 25... Nxf3 {[%clk 0:01:17.6]} 26. Rxe7
{[%clk 0:00:53.1]} 26... Rxe7 {[%clk 0:01:18.5]} 27. Rxe7 {[%clk 0:00:51.9]}
27... Kxe7 {[%clk 0:01:19.4]} 28. Bc2 {[%clk 0:00:52.8]} 28... Nd2+ {[%clk
0:01:13.6]} 29. Ke2 {[%clk 0:00:52.8]} 29... Nxc4 {[%clk 0:01:14]} 30. Bxh7
{[%clk 0:00:53.6]} 30... g6 {[%clk 0:01:09.6]} 0-1

[Event "*** Titled Tuesday Blitz"]
[Site "Chess.com"]
[Date "2021.04.27"]
[Round "5"]
[White "juancruzarias"]
[Black "The_filthy"]
[Result "1-0"]
[WhiteElo "2582"]
[BlackElo "2410"]
[TimeControl "180+1"]
[EndTime "10:54:17 PDT"]
[Termination "juancruzarias won by resignation"]

1. d4 {[%clk 0:03:00.9]} 1... d5 {[%clk 0:02:58.9]} 2. c4 {[%clk 0:02:58.5]}
2... c6 {[%clk 0:02:59.2]} 3. cxd5 {[%clk 0:02:57.9]} 3... cxd5 {[%clk
0:02:58.9]} 4. Nc3 {[%clk 0:02:58.5]} 4... Nf6 {[%clk 0:02:58.8]} 5. Nf3 {[%clk
0:02:59]} 5... Nc6 {[%clk 0:02:57.3]} 6. Bf4 {[%clk 0:02:59.5]} 6... Bf5 {[%clk
0:02:53.9]} 7. e3 {[%clk 0:02:59.3]} 7... e6 {[%clk 0:02:53.6]} 8. Bb5 {[%clk
0:02:59.8]} 8... Be7 {[%clk 0:02:51.3]} 9. Ne5 {[%clk 0:02:55.4]} 9... Rc8
{[%clk 0:02:47]} 10. Qa4 {[%clk 0:02:54.4]} 10... O-O {[%clk 0:02:45.1]} 11.
Bxc6 {[%clk 0:02:48.8]} 11... bxc6 {[%clk 0:02:44.5]} 12. Nxc6 {[%clk
0:02:49.7]} 12... Qd7 {[%clk 0:02:42.7]} 13. Nxe7+ {[%clk 0:02:45.4]} 13... Qxe7
{[%clk 0:02:43.6]} 14. O-O {[%clk 0:02:44.2]} 14... Rc4 {[%clk 0:02:38.4]} 15.
Qb3 {[%clk 0:02:38]} 15... Ne4 {[%clk 0:02:36]} 16. Nxe4 {[%clk 0:02:35.9]}
16... Bxe4 {[%clk 0:02:34.3]} 17. Rfc1 {[%clk 0:02:33.2]} 17... Rfc8 {[%clk
0:02:30.6]} 18. Qd1 {[%clk 0:01:52.2]} 18... g5 {[%clk 0:02:27.9]} 19. Be5
{[%clk 0:01:48.5]} 19... f6 {[%clk 0:02:26.1]} 20. Bg3 {[%clk 0:01:48.4]} 20...
Bg6 {[%clk 0:02:00.2]} 21. b3 {[%clk 0:01:46.5]} 21... Rc2 {[%clk 0:01:57.1]}
22. Rxc2 {[%clk 0:01:43.7]} 22... Rxc2 {[%clk 0:01:57.2]} 23. h4 {[%clk
0:01:39.1]} 23... Qa3 {[%clk 0:01:31.4]} 24. hxg5 {[%clk 0:01:24.6]} 24... fxg5
{[%clk 0:01:30.1]} 25. Qg4 {[%clk 0:01:15.5]} 25... Qb2 {[%clk 0:01:23.1]} 26.
Rf1 {[%clk 0:01:00.5]} 26... Rc1 {[%clk 0:01:22.6]} 27. Rxc1 {[%clk 0:00:53.1]}
27... Qxc1+ {[%clk 0:01:22.5]} 28. Kh2 {[%clk 0:00:54]} 28... Qc6 {[%clk
0:01:05.8]} 29. Qxg5 {[%clk 0:00:53.2]} 29... a5 {[%clk 0:01:05.9]} 30. Be5
{[%clk 0:00:52.8]} 1-0

[Event "*** Titled Tuesday Blitz"]
[Site "Chess.com"]
[Date "2021.04.27"]
[Round "5"]
[White "Keks2017"]
[Black "HouseOfDurin"]
[Result "1-0"]
[WhiteElo "2471"]
[BlackElo "2138"]
[TimeControl "180+1"]
[EndTime "10:54:17 PDT"]
[Termination "Keks2017 won by resignation"]

1. e4 {[%clk 0:02:59.5]} 1... c5 {[%clk 0:02:59.7]} 2. d3 {[%clk 0:02:58.3]}
2... Nc6 {[%clk 0:02:59.5]} 3. g3 {[%clk 0:02:56.9]} 3... g6 {[%clk 0:02:59.8]}
4. Bg2 {[%clk 0:02:56.6]} 4... Bg7 {[%clk 0:03:00.5]} 5. f4 {[%clk 0:02:56.4]}
5... e5 {[%clk 0:03:01.1]} 6. c3 {[%clk 0:02:55.9]} 6... Nge7 {[%clk 0:03:00.8]}
7. Nf3 {[%clk 0:02:55.8]} 7... d6 {[%clk 0:03:00.7]} 8. O-O {[%clk 0:02:55.8]}
8... f5 {[%clk 0:02:56]} 9. Na3 {[%clk 0:02:55.2]} 9... O-O {[%clk 0:02:54]} 10.
Qb3+ {[%clk 0:02:55]} 10... Kh8 {[%clk 0:02:53.5]} 11. Ng5 {[%clk 0:02:54.9]}
11... Na5 {[%clk 0:02:21.4]} 12. Nf7+ {[%clk 0:02:48.5]} 12... Kg8 {[%clk
0:02:21.5]} 13. Nxd8+ {[%clk 0:02:42.5]} 13... Nxb3 {[%clk 0:02:19.9]} 14. axb3
{[%clk 0:02:42.4]} 14... Rxd8 {[%clk 0:02:18.8]} 15. Nc4 {[%clk 0:02:31.3]}
15... a6 {[%clk 0:01:09]} 16. Be3 {[%clk 0:02:23.5]} 16... Be6 {[%clk
0:00:23.9]} 17. fxe5 {[%clk 0:02:16.8]} 17... Bxc4 {[%clk 0:00:15.6]} 18. exd6
{[%clk 0:02:01.2]} 18... Rxd6 {[%clk 0:00:12.7]} 19. bxc4 {[%clk 0:01:53]} 19...
Rxd3 {[%clk 0:00:11.5]} 20. Bxc5 {[%clk 0:01:51.8]} 20... Nc6 {[%clk 0:00:10.5]}
21. exf5 {[%clk 0:01:51.6]} 21... gxf5 {[%clk 0:00:10.1]} 22. Rxf5 {[%clk
0:01:50.7]} 22... Rd2 {[%clk 0:00:07.9]} 23. Rf2 {[%clk 0:01:47.5]} 23... Rad8
{[%clk 0:00:07]} 24. Bd5+ {[%clk 0:01:45.1]} 24... Kh8 {[%clk 0:00:05.6]} 25.
Rxd2 {[%clk 0:01:43.8]} 1-0